[Event "8th RTU Open 2018"]
[Site "Riga"]
[Date "2018.08.12"]
[Round "9"]
[White "Jacobs, Florian"]
[Black "Cruz Lledo, Pablo"]
[Result "0-1"]
[ECO "D31"]
[WhiteElo "2255"]
[BlackElo "2432"]
[Annotator "NA"]
[PlyCount "88"]
[EventDate "2018.08.06"]
[EventType "swiss"]
[EventCountry "LAT"]
[SourceTitle "playchess.com"]
[Source "ChessBase"]
[SourceQuality "1"]
[TimeControl "5400+30"]

1. d4 {[%emt 0:00:00]} d5 {[%emt 0:00:00]} 2. c4 {[%emt 0:00:00]} e6 {[%emt 0:00:00]} 3. Nc3 {[%emt 0:00:00]} Bb4 {[%emt 0:00:00]} 4. e3 {[%emt 0:00:00]} Ne7 {[%emt 0:02:53]} 5. a3 {[%emt 0:01:40]} Bxc3+ {[%emt 0:00:15]} 6. bxc3 {[%emt 0:00:04]} O-O {[%emt 0:00:15]} 7. Bd3 {[%emt 0:07:29]} Nbc6 {[%emt 0:02:57]} 8. Ne2 {[%emt 0:03:27]} Na5 {[%emt 0:01:04]} 9. cxd5 {[%emt 0:00:53]} exd5 {[%emt 0:00:06]} 10. Ng3 {[%emt 0:00:31]} Be6 {[%emt 0:12:00]} 11. O-O {[%emt 0:00:32]} Qd7 {[%emt 0:00:08]} 12. f3 {[%emt 0:06:17]} Nf5 {[%emt 0:02:50]} 13. Ne2 {[%emt 0:16:36]} Nd6 {[%emt 0:06:57]} 14. e4 {[%emt 0:02:56]} dxe4 {[%emt 0:04:57]} 15. fxe4 {[%emt 0:00:30]} Bb3 {[%emt 0:01:07]} 16. Qe1 {[%emt 0:01:46]} Bc4 {[%emt 0:00:17]} 17. Bxc4 {[%emt 0:02:13]} Naxc4 {[%emt 0:03:00]} 18. e5 {[%emt 0:06:59]} Nf5 {[%emt 0:02:44]} 19. Qf2 {[%emt 0:04:10]} Ne7 {[%emt 0:00:27]} 20. Ng3 {[%emt 0:04:09]} Nd5 {[%emt 0:02:44]} 21. Nf5 {[%emt 0:19:07]} Kh8 {[%emt 0:15:31]} 22. Bg5 {[%emt 0:06:32]} f6 {[%emt 0:03:13]} 23. exf6 {[%emt 0:00:06]} Nxf6 {[%emt 0:00:15]} 24. Qh4 {[%emt 0:08:27]} Nd5 {[%emt 0:03:03]} 25. Ne7 {[%emt 0:00:01]} Qd6 {[%emt 0:05:24]} 26. Nxd5 {[%emt 0:02:55]} Qxd5 {[%emt 0:00:02]} 27. a4 {[%emt 0:00:59]} Nd6 {[%emt 0:04:09]} 28. Rxf8+ {[%emt 0:00:05]} Rxf8 {[%emt 0:00:04]} 29. Re1 {[%emt 0:00:22]} Qf7 {[%emt 0:05:36]} 30. h3 {[%emt 0:01:33]} Re8 {[%emt 0:00:01]} 31. Rf1 {[%emt 0:01:26]} Qd5 {[%emt 0:04:00]} 32. Qf4 {[%emt 0:01:28]} Ne4 {[%emt 0:05:19]} 33. Re1 {[%emt 0:00:28]} Kg8 {[%emt 0:00:54]} 34. Qe3 {[%emt 0:01:30]} Nd6 {[%emt 0:03:58]} 35. Qxe8+ {[%emt 0:00:54]} Nxe8 {[%emt 0:00:06]} 36. Rxe8+ {[%emt 0:00:02]} Kf7 {[%emt 0:00:08]} 37. Re7+ {[%emt 0:00:42]} Kf8 {[%emt 0:01:28]} 38. Re5 {[%emt 0:00:14]} Qb3 {[%emt 0:00:11]} 39. Be7+ {[%emt 0:00:33]} Kg8 {[%emt 0:00:35]} 40. a5 {[%emt 0:01:35]} Qxc3 {[%emt 0:00:23]} 41. Bc5 {[%emt 0:00:29]} b6 {[%emt 0:00:50]} 42. axb6 {[%emt 0:00:11]} cxb6 {[%emt 0:00:54]} 43. Re8+ {[%emt 0:00:34]} Kf7 {[%emt 0:00:05]} 44. Rf8+ {[%emt 0:00:13]} Kg6 {[%emt 0:00:10]} 0-1

[Event "8th RTU Open 2018"]
[Site "Riga"]
[Date "2018.08.12"]
[Round "9"]
[White "Bluebaum, Karl Ernst"]
[Black "Fenil, Shah"]
[Result "0-1"]
[ECO "D31"]
[WhiteElo "2253"]
[BlackElo "2412"]
[Annotator "NA"]
[PlyCount "94"]
[EventDate "2018.08.06"]
[EventType "swiss"]
[EventCountry "LAT"]
[SourceTitle "playchess.com"]
[Source "ChessBase"]
[SourceQuality "1"]
[TimeControl "5400+30"]

1. d4 {[%emt 0:00:00]} d5 {[%emt 0:00:00]} 2. c4 {[%emt 0:00:00]} e6 {[%emt 0:00:00]} 3. Nc3 {[%emt 0:00:04]} c6 {[%emt 0:00:00]} 4. e3 {[%emt 0:00:23]} Bd6 {[%emt 0:00:00]} 5. Bd3 {[%emt 0:00:25]} f5 {[%emt 0:00:05]} 6. Nge2 {[%emt 0:00:24]} Nf6 {[%emt 0:00:09]} 7. f3 {[%emt 0:00:12]} O-O {[%emt 0:02:11]} 8. O-O {[%emt 0:01:25]} Qe7 {[%emt 0:13:19]} 9. Qc2 {[%emt 0:00:25]} Kh8 {[%emt 0:02:06]} 10. c5 {[%emt 0:24:07]} Bc7 {[%emt 0:01:18]} 11. b4 {[%emt 0:02:52]} Nh5 {[%emt 0:15:33]} 12. Bd2 {[%emt 0:14:50]} e5 {[%emt 0:24:14]} 13. dxe5 {[%emt 0:01:10]} Bxe5 {[%emt 0:05:27]} 14. Rae1 {[%emt 0:05:57]} Nf6 {[%emt 0:08:42]} 15. Kh1 {[%emt 0:02:28]} b6 {[%emt 0:01:23]} 16. Na4 {[%emt 0:03:24]} b5 {[%emt 0:03:34]} 17. Nac3 {[%emt 0:01:41]} a5 {[%emt 0:00:01]} 18. a3 {[%emt 0:00:09]} Na6 {[%emt 0:01:29]} 19. Nd1 {[%emt 0:01:29]} Bd7 {[%emt 0:02:39]} 20. Nd4 {[%emt 0:00:49]} g6 {[%emt 0:05:39]} 21. Bc3 {[%emt 0:00:11]} Kg8 {[%emt 0:00:44]} 22. Nb2 {[%emt 0:05:08]} Nh5 {[%emt 0:04:24]} 23. Qf2 {[%emt 0:00:29]} axb4 {[%emt 0:01:18]} 24. axb4 {[%emt 0:00:03]} Nc7 {[%emt 0:00:07]} 25. Ra1 {[%emt 0:05:42]} Bg7 {[%emt 0:03:22]} 26. Qd2 {[%emt 0:04:54]} Qh4 {[%emt 0:00:55]} 27. Kg1 {[%emt 0:00:12]} f4 {[%emt 0:00:41]} 28. Rxa8 {[%emt 0:10:40]} Rxa8 {[%emt 0:00:01]} 29. exf4 {[%emt 0:00:14]} Qxf4 {[%emt 0:01:43]} 30. Qf2 {[%emt 0:05:26]} Qf7 {[%emt 0:00:02]} 31. Ne2 {[%emt 0:03:21]} Ra2 {[%emt 0:00:10]} 32. Bb1 {[%emt 0:00:57]} Rxb2 {[%emt 0:00:19]} 33. Bxb2 {[%emt 0:00:19]} Bxb2 {[%emt 0:00:02]} 34. Nd4 {[%emt 0:00:20]} Bc3 {[%emt 0:00:25]} 35. Rc1 {[%emt 0:00:50]} Bxb4 {[%emt 0:01:13]} 36. Qh4 {[%emt 0:00:55]} Qf6 {[%emt 0:00:12]} 37. Qf2 {[%emt 0:01:58]} Nf4 {[%emt 0:00:21]} 38. Nb3 {[%emt 0:00:18]} Nce6 {[%emt 0:01:07]} 39. Kf1 {[%emt 0:01:12]} d4 {[%emt 0:00:25]} 40. Be4 {[%emt 0:00:30]} d3 {[%emt 0:01:01]} 41. Qa2 {[%emt 0:01:03]} Qg5 {[%emt 0:02:31]} 42. g3 {[%emt 0:00:44]} Ne2 {[%emt 0:00:47]} 43. Qa8+ {[%emt 0:01:55]} Nf8 {[%emt 0:00:04]} 44. Rd1 Qe3 {[%emt 0:01:29]} 45. Kg2 {[%emt 0:01:52]} Nf4+ {[%emt 0:00:20]} 46. gxf4 {[%emt 0:00:21]} Qe2+ {[%emt 0:00:01]} 47. Kg3 {[%emt 0:00:39]} Qxd1 {[%emt 0:00:19]} 0-1

[Event "8th RTU Open 2018"]
[Site "Riga"]
[Date "2018.08.12"]
[Round "9"]
[White "Makoveev, Ilya"]
[Black "Lapshun, Yury"]
[Result "1-0"]
[ECO "B28"]
[WhiteElo "2249"]
[BlackElo "2403"]
[Annotator "NA"]
[PlyCount "35"]
[EventDate "2018.08.06"]
[EventType "swiss"]
[EventCountry "LAT"]
[SourceTitle "playchess.com"]
[Source "ChessBase"]
[SourceQuality "1"]
[TimeControl "5400+30"]

1. e4 {[%emt 0:00:00]} c5 {[%emt 0:22:46]} 2. Nf3 {[%emt 0:00:00]} a6 {[%emt 0:00:06]} 3. d4 {[%emt 0:03:46]} cxd4 {[%emt 0:00:05]} 4. Nxd4 {[%emt 0:00:08]} Nf6 {[%emt 0:00:18]} 5. Nc3 {[%emt 0:00:42]} e5 {[%emt 0:00:23]} 6. Nf3 {[%emt 0:01:11]} Nc6 {[%emt 0:00:51]} 7. Bc4 {[%emt 0:04:12]} Bb4 {[%emt 0:00:46]} 8. O-O {[%emt 0:00:44]} Bxc3 {[%emt 0:03:01]} 9. bxc3 {[%emt 0:00:17]} d6 {[%emt 0:05:52]} 10. Re1 {[%emt 0:23:25]} Be6 {[%emt 0:04:43]} 11. Bxe6 {[%emt 0:08:11]} fxe6 {[%emt 0:00:08]} 12. Ba3 {[%emt 0:00:11]} Ke7 {[%emt 0:00:06]} 13. Rb1 {[%emt 0:06:27]} Rb8 {[%emt 0:01:04]} 14. Rb6 {[%emt 0:09:50]} Qc7 {[%emt 0:10:02]} 15. Nxe5 {[%emt 0:00:43]} Rbd8 {[%emt 0:03:04]} 16. Nc4 {[%emt 0:06:09]} e5 {[%emt 0:22:52]} 17. Qb1 {[%emt 0:01:09]} Rd7 {[%emt 0:00:49]} 18. Nxd6 {[%emt 0:02:06]} 1-0

[Event "8th RTU Open 2018"]
[Site "Riga"]
[Date "2018.08.12"]
[Round "9"]
[White "Kretainis, Kristaps"]
[Black "Berzinsh, Roland"]
[Result "0-1"]
[ECO "A06"]
[WhiteElo "2235"]
[BlackElo "2408"]
[Annotator "NA"]
[PlyCount "90"]
[EventDate "2018.08.06"]
[EventType "swiss"]
[EventCountry "LAT"]
[SourceTitle "playchess.com"]
[Source "ChessBase"]
[SourceQuality "1"]
[TimeControl "5400+30"]

1. Nf3 {[%emt 0:00:00]} d5 {[%emt 0:00:49]} 2. g3 {[%emt 0:00:00]} g6 {[%emt 0:01:49]} 3. Bg2 {[%emt 0:00:00]} Bg7 {[%emt 0:00:07]} 4. d4 {[%emt 0:00:21]} c5 {[%emt 0:00:09]} 5. O-O {[%emt 0:00:14]} cxd4 {[%emt 0:00:38]} 6. Nxd4 {[%emt 0:00:03]} e5 {[%emt 0:00:58]} 7. Nb3 {[%emt 0:00:10]} Ne7 {[%emt 0:00:31]} 8. c4 {[%emt 0:00:39]} d4 {[%emt 0:00:27]} 9. e3 {[%emt 0:01:17]} O-O {[%emt 0:01:04]} 10. exd4 {[%emt 0:00:42]} exd4 {[%emt 0:00:09]} 11. Bf4 {[%emt 0:00:18]} Nbc6 {[%emt 0:02:57]} 12. Qd2 {[%emt 0:00:19]} Nf5 {[%emt 0:19:15]} 13. Na3 {[%emt 0:03:51]} h6 {[%emt 0:02:46]} 14. h4 {[%emt 0:00:29]} Qb6 {[%emt 0:05:53]} 15. Nb5 {[%emt 0:01:22]} Ne5 16. Bxe5 {[%emt 0:19:11]} Bxe5 {[%emt 0:00:26]} 17. Rfe1 {[%emt 0:00:12]} Bg7 {[%emt 0:01:23]} 18. Qa5 {[%emt 0:03:46]} Qd8 {[%emt 0:09:12]} 19. Rad1 {[%emt 0:04:32]} a6 {[%emt 0:12:03]} 20. Qxd8 {[%emt 0:10:19]} Rxd8 {[%emt 0:00:02]} 21. Nc7 {[%emt 0:00:05]} Rb8 {[%emt 0:00:12]} 22. Nc5 {[%emt 0:02:37]} Nd6 {[%emt 0:03:19]} 23. b3 {[%emt 0:08:43]} Bg4 {[%emt 0:00:53]} 24. f3 {[%emt 0:00:10]} Bf5 {[%emt 0:01:22]} 25. Nd3 {[%emt 0:01:35]} Kf8 {[%emt 0:03:03]} 26. Ne5 {[%emt 0:07:06]} Rbc8 {[%emt 0:04:16]} 27. Nd5 {[%emt 0:00:28]} b5 {[%emt 0:02:51]} 28. Nb6 {[%emt 0:00:55]} Rc5 {[%emt 0:01:07]} 29. f4 {[%emt 0:00:54]} bxc4 {[%emt 0:01:54]} 30. Rxd4 {[%emt 0:03:05]} c3 {[%emt 0:00:08]} 31. Nbc4 {[%emt 0:04:03]} c2 {[%emt 0:02:45]} 32. Rc1 {[%emt 0:02:58]} Nxc4 {[%emt 0:03:53]} 33. Rxd8+ {[%emt 0:00:48]} Ke7 {[%emt 0:00:06]} 34. bxc4 {[%emt 0:20:16]} Kxd8 {[%emt 0:08:51]} 35. Nxf7+ {[%emt 0:00:13]} Ke7 {[%emt 0:00:25]} 36. Ne5 {[%emt 0:00:04]} Rxe5 {[%emt 0:03:31]} 37. fxe5 {[%emt 0:00:37]} Bxe5 {[%emt 0:00:05]} 38. Re1 {[%emt 0:03:04]} Kf6 {[%emt 0:02:54]} 39. g4 {[%emt 0:00:25]} Bd4+ {[%emt 0:00:14]} 40. Kh1 {[%emt 0:02:14]} Bd3 {[%emt 0:00:23]} 41. c5 {[%emt 0:01:35]} Bxc5 {[%emt 0:00:19]} 42. g5+ {[%emt 0:00:12]} hxg5 {[%emt 0:01:22]} 43. hxg5+ {[%emt 0:00:02]} Kg7 {[%emt 0:00:11]} 44. Bf1 {[%emt 0:00:26]} Bxf1 {[%emt 0:00:24]} 45. Rxf1 {[%emt 0:00:09]} Be3 {[%emt 0:00:10]} 0-1

[Event "8th RTU Open 2018"]
[Site "Riga"]
[Date "2018.08.12"]
[Round "9"]
[White "Mierins, Eriks"]
[Black "Martin, Julian"]
[Result "0-1"]
[ECO "B96"]
[WhiteElo "2235"]
[BlackElo "2392"]
[Annotator "NA"]
[PlyCount "70"]
[EventDate "2018.08.06"]
[EventType "swiss"]
[EventCountry "LAT"]
[SourceTitle "playchess.com"]
[Source "ChessBase"]
[SourceQuality "1"]
[TimeControl "5400+30"]

1. e4 {[%emt 0:01:41]} c5 {[%emt 0:00:00]} 2. Nf3 {[%emt 0:00:04]} d6 {[%emt 0:00:00]} 3. d4 {[%emt 0:00:09]} cxd4 {[%emt 0:00:00]} 4. Nxd4 {[%emt 0:00:05]} Nf6 {[%emt 0:00:00]} 5. Nc3 {[%emt 0:00:11]} a6 {[%emt 0:00:00]} 6. Bg5 {[%emt 0:00:17]} e6 {[%emt 0:00:42]} 7. f4 {[%emt 0:00:50]} Nbd7 {[%emt 0:00:03]} 8. a4 {[%emt 0:01:32]} Qc7 {[%emt 0:12:16]} 9. Be2 {[%emt 0:00:35]} Be7 {[%emt 0:01:11]} 10. O-O {[%emt 0:01:07]} h6 {[%emt 0:01:40]} 11. Bxf6 {[%emt 0:11:47]} Bxf6 {[%emt 0:02:33]} 12. Kh1 {[%emt 0:00:30]} O-O {[%emt 0:05:07]} 13. Qd2 {[%emt 0:05:11]} b6 {[%emt 0:02:21]} 14. Bf3 {[%emt 0:00:49]} Bb7 {[%emt 0:01:12]} 15. Rad1 {[%emt 0:01:47]} Rfd8 {[%emt 0:05:29]} 16. f5 {[%emt 0:34:02]} Nf8 {[%emt 0:16:44]} 17. Qf2 {[%emt 0:07:36]} Rac8 {[%emt 0:03:14]} 18. Bg4 {[%emt 0:00:32]} Qe7 {[%emt 0:10:11]} 19. fxe6 {[%emt 0:06:18]} fxe6 {[%emt 0:00:05]} 20. Rd3 {[%emt 0:03:51]} Rc4 {[%emt 0:06:42]} 21. Rfd1 {[%emt 0:00:18]} Bc8 {[%emt 0:02:39]} 22. Nce2 {[%emt 0:04:35]} Ng6 {[%emt 0:01:41]} 23. b3 {[%emt 0:00:21]} Rc5 {[%emt 0:00:54]} 24. Bf3 {[%emt 0:10:33]} Ne5 {[%emt 0:06:58]} 25. Rc3 {[%emt 0:00:07]} Qc7 {[%emt 0:00:15]} 26. Qe1 {[%emt 0:01:13]} Bd7 {[%emt 0:00:41]} 27. Bh5 {[%emt 0:02:50]} g6 {[%emt 0:02:40]} 28. Rg3 {[%emt 0:01:32]} Kh7 {[%emt 0:00:50]} 29. Nf4 {[%emt 0:00:16]} gxh5 {[%emt 0:01:00]} 30. Ndxe6 {[%emt 0:00:52]} Bxe6 {[%emt 0:00:08]} 31. Nxe6 {[%emt 0:00:04]} Qe7 {[%emt 0:00:51]} 32. Nxd8 {[%emt 0:02:42]} Bh4 {[%emt 0:00:57]} 33. Qb4 {[%emt 0:01:36]} Qxd8 {[%emt 0:06:35]} 34. Rh3 {[%emt 0:00:35]} Ng4 {[%emt 0:00:17]} 35. e5 {[%emt 0:00:22]} Nf2+ {[%emt 0:00:55]} 0-1

[Event "8th RTU Open 2018"]
[Site "Riga"]
[Date "2018.08.12"]
[Round "9"]
[White "Chibukhchyan, Erik"]
[Black "Sirosh, Ilja"]
[Result "0-1"]
[ECO "C77"]
[WhiteElo "2214"]
[BlackElo "2372"]
[Annotator "NA"]
[PlyCount "54"]
[EventDate "2018.08.06"]
[EventType "swiss"]
[EventCountry "LAT"]
[SourceTitle "playchess.com"]
[Source "ChessBase"]
[SourceQuality "1"]
[TimeControl "5400+30"]

1. e4 {[%emt 0:00:00]} e5 {[%emt 0:00:00]} 2. Nf3 {[%emt 0:00:02]} Nc6 {[%emt 0:00:00]} 3. Bb5 {[%emt 0:00:03]} a6 4. Ba4 {[%emt 0:00:10]} Nf6 {[%emt 0:00:00]} 5. Bxc6 {[%emt 0:02:20]} dxc6 {[%emt 0:00:00]} 6. d3 {[%emt 0:00:02]} Bd6 {[%emt 0:01:45]} 7. Nbd2 {[%emt 0:00:11]} O-O {[%emt 0:04:42]} 8. O-O {[%emt 0:00:06]} Nd7 {[%emt 0:01:13]} 9. b3 {[%emt 0:00:10]} Nc5 {[%emt 0:05:12]} 10. Bb2 {[%emt 0:00:32]} f6 {[%emt 0:00:08]} 11. Nh4 {[%emt 0:00:59]} g6 {[%emt 0:04:19]} 12. Nhf3 {[%emt 0:00:02]} Ne6 {[%emt 0:03:12]} 13. Nc4 {[%emt 0:11:28]} c5 {[%emt 0:05:08]} 14. c3 {[%emt 0:03:24]} b5 {[%emt 0:05:32]} 15. Nxd6 {[%emt 0:12:14]} cxd6 {[%emt 0:01:20]} 16. d4 {[%emt 0:01:36]} Qe7 {[%emt 0:15:29]} 17. d5 {[%emt 0:02:54]} Nf4 {[%emt 0:04:23]} 18. Bc1 {[%emt 0:04:13]} g5 {[%emt 0:02:00]} 19. Bxf4 {[%emt 0:01:44]} gxf4 {[%emt 0:00:32]} 20. Nd2 {[%emt 0:00:59]} Kh8 {[%emt 0:04:05]} 21. Qh5 {[%emt 0:02:18]} Rg8 {[%emt 0:01:17]} 22. f3 {[%emt 0:00:46]} Rg5 {[%emt 0:02:23]} 23. Qh4 {[%emt 0:01:46]} Qg7 {[%emt 0:00:18]} 24. Rf2 {[%emt 0:01:58]} Bd7 {[%emt 0:01:01]} 25. Kh1 {[%emt 0:10:01]} Rg8 {[%emt 0:03:01]} 26. Rg1 {[%emt 0:00:08]} Rg6 {[%emt 0:00:37]} 27. Re2 {[%emt 0:00:35]} Rh6 {[%emt 0:00:09]} 0-1

[Event "8th RTU Open 2018"]
[Site "Riga"]
[Date "2018.08.12"]
[Round "9"]
[White "Holland, James P"]
[Black "Shishkov, Andrei"]
[Result "0-1"]
[ECO "B90"]
[WhiteElo "2212"]
[BlackElo "2370"]
[Annotator "NA"]
[PlyCount "70"]
[EventDate "2018.08.06"]
[EventType "swiss"]
[EventCountry "LAT"]
[SourceTitle "playchess.com"]
[Source "ChessBase"]
[SourceQuality "1"]
[TimeControl "5400+30"]

1. e4 {[%emt 0:04:18]} c5 {[%emt 0:00:00]} 2. Nf3 {[%emt 0:00:13]} d6 {[%emt 0:00:00]} 3. d4 {[%emt 0:00:18]} cxd4 {[%emt 0:00:00]} 4. Nxd4 {[%emt 0:00:04]} Nf6 {[%emt 0:00:00]} 5. Nc3 {[%emt 0:00:07]} a6 {[%emt 0:00:00]} 6. Bc4 {[%emt 0:00:49]} e6 {[%emt 0:00:00]} 7. Bb3 {[%emt 0:00:04]} Nbd7 {[%emt 0:00:05]} 8. f4 {[%emt 0:00:20]} Nc5 {[%emt 0:00:41]} 9. O-O {[%emt 0:00:47]} Nfxe4 {[%emt 0:01:33]} 10. Nxe4 {[%emt 0:00:08]} Nxe4 {[%emt 0:00:03]} 11. f5 {[%emt 0:00:05]} e5 {[%emt 0:00:51]} 12. Qh5 {[%emt 0:00:20]} Qd7 {[%emt 0:01:36]} 13. Bg5 {[%emt 0:34:24]} b5 {[%emt 0:45:11]} 14. Ne6 {[%emt 0:22:19]} Bb7 {[%emt 0:00:13]} 15. Rad1 {[%emt 0:07:13]} Rc8 {[%emt 0:00:44]} 16. f6 {[%emt 0:05:30]} g6 {[%emt 0:00:36]} 17. Qg4 {[%emt 0:02:49]} d5 {[%emt 0:23:53]} 18. Bxd5 {[%emt 0:05:28]} Bxd5 {[%emt 0:01:02]} 19. Rxd5 {[%emt 0:00:09]} Qxd5 {[%emt 0:01:33]} 20. Ng7+ {[%emt 0:00:28]} Kd8 {[%emt 0:00:28]} 21. Rd1 {[%emt 0:01:54]} Bc5+ {[%emt 0:00:00]} 22. Kf1 {[%emt 0:00:04]} Bd4 {[%emt 0:00:00]} 23. c3 {[%emt 0:01:00]} Nf2 {[%emt 0:11:03]} 24. Rxd4 {[%emt 0:01:16]} exd4 {[%emt 0:00:14]} 25. Kxf2 {[%emt 0:00:23]} d3 {[%emt 0:05:27]} 26. Be3 {[%emt 0:01:22]} Rc6 {[%emt 0:00:51]} 27. Ke1 {[%emt 0:01:43]} h5 {[%emt 0:01:35]} 28. Qf4 {[%emt 0:01:19]} Kc8 {[%emt 0:00:33]} 29. a4 {[%emt 0:01:29]} Rc4 {[%emt 0:01:09]} 30. Bd4 {[%emt 0:00:28]} Rxa4 {[%emt 0:00:52]} 31. Kd2 {[%emt 0:00:41]} Rd8 {[%emt 0:01:09]} 32. Kxd3 {[%emt 0:00:32]} Qxg2 {[%emt 0:01:11]} 33. Qe5 {[%emt 0:00:28]} Qd5 {[%emt 0:00:39]} 34. Qe3 {[%emt 0:02:25]} Qc4+ {[%emt 0:00:31]} 35. Kc2 {[%emt 0:00:05]} Rxd4 {[%emt 0:00:43]} 0-1

[Event "8th RTU Open 2018"]
[Site "Riga"]
[Date "2018.08.12"]
[Round "9"]
[White "Kerem, Halil Ozgun"]
[Black "Rietze, Clemens"]
[Result "1/2-1/2"]
[ECO "A06"]
[WhiteElo "2194"]
[BlackElo "2339"]
[Annotator "NA"]
[PlyCount "36"]
[EventDate "2018.08.06"]
[EventType "swiss"]
[EventCountry "LAT"]
[SourceTitle "playchess.com"]
[Source "ChessBase"]
[SourceQuality "1"]
[TimeControl "5400+30"]

1. Nf3 {[%emt 0:00:00]} d5 {[%emt 0:00:00]} 2. g3 {[%emt 0:00:00]} Bg4 {[%emt 0:00:48]} 3. Bg2 {[%emt 0:00:00]} Nd7 {[%emt 0:00:22]} 4. d4 {[%emt 0:00:29]} e6 {[%emt 0:00:47]} 5. O-O {[%emt 0:00:12]} Bd6 {[%emt 0:01:25]} 6. Nbd2 {[%emt 0:00:41]} f5 {[%emt 0:01:23]} 7. c4 {[%emt 0:02:33]} c6 {[%emt 0:00:16]} 8. b3 {[%emt 0:07:43]} Nh6 {[%emt 0:06:05]} 9. Bb2 {[%emt 0:02:05]} Qf6 {[%emt 0:07:39]} 10. a3 {[%emt 0:24:10]} O-O {[%emt 0:03:57]} 11. e3 {[%emt 0:08:37]} Nf7 {[%emt 0:07:10]} 12. b4 {[%emt 0:00:48]} b5 {[%emt 0:09:41]} 13. c5 {[%emt 0:01:41]} Bc7 {[%emt 0:02:43]} 14. a4 {[%emt 0:00:04]} a6 {[%emt 0:02:19]} 15. axb5 {[%emt 0:02:30]} axb5 {[%emt 0:01:45]} 16. Qb3 {[%emt 0:00:59]} Kh8 {[%emt 0:14:13]} 17. Ra3 {[%emt 0:06:00]} Bxf3 {[%emt 0:03:44]} 18. Nxf3 {[%emt 0:01:39]} e5 {[%emt 0:01:16]} 1/2-1/2

[Event "8th RTU Open 2018"]
[Site "Riga"]
[Date "2018.08.12"]
[Round "9"]
[White "Pavlov, Sergey"]
[Black "Lagunow, Raphael"]
[Result "1/2-1/2"]
[ECO "D04"]
[WhiteElo "2003"]
[BlackElo "2404"]
[Annotator "NA"]
[PlyCount "37"]
[EventDate "2018.08.06"]
[EventType "swiss"]
[EventCountry "LAT"]
[SourceTitle "playchess.com"]
[Source "ChessBase"]
[SourceQuality "1"]
[TimeControl "5400+30"]

1. d4 {[%emt 0:00:00]} Nf6 {[%emt 0:02:44]} 2. Nf3 {[%emt 0:00:00]} d5 {[%emt 0:00:29]} 3. e3 {[%emt 0:01:05]} c5 {[%emt 0:01:34]} 4. dxc5 {[%emt 0:01:38]} e6 {[%emt 0:08:49]} 5. a3 {[%emt 0:00:38]} Bxc5 {[%emt 0:01:02]} 6. b4 {[%emt 0:01:14]} Bd6 {[%emt 0:01:35]} 7. Bb2 {[%emt 0:00:43]} O-O {[%emt 0:02:27]} 8. Nbd2 {[%emt 0:00:31]} a5 {[%emt 0:06:56]} 9. b5 {[%emt 0:00:52]} Nbd7 {[%emt 0:01:02]} 10. c4 {[%emt 0:01:32]} a4 {[%emt 0:04:58]} 11. Bd3 {[%emt 0:20:53]} Nc5 {[%emt 0:02:35]} 12. Bc2 {[%emt 0:00:19]} Bd7 {[%emt 0:02:11]} 13. Qb1 {[%emt 0:05:08]} Be7 {[%emt 0:12:27]} 14. O-O {[%emt 0:11:55]} dxc4 {[%emt 0:10:33]} 15. Nxc4 {[%emt 0:00:52]} Bxb5 {[%emt 0:01:05]} 16. Rd1 {[%emt 0:02:37]} Bd7 {[%emt 0:01:56]} 17. Bd4 {[%emt 0:09:33]} Qe8 {[%emt 0:04:46]} 18. Nb6 {[%emt 0:05:46]} Rd8 {[%emt 0:00:44]} 19. Nxd7 {[%emt 0:09:19]} 1/2-1/2